[Event "Titled Tuesday Blitz March 14 Early 2023"]
[White "Xiong, Jeffery"]
[Black "Costachi, Mihnea"]
[WhiteFideId "2047640"]
[BlackFideId "1217518"]
[WhiteElo "2726"]
[BlackElo "2456"]
[Result "1-0"]
[Round "07"]
[TimeControl "180+2"]
[Date "2023.03.14"]
[WhiteClock "0:02:29"]
[BlackClock "0:00:05"]

1. d4 {[%clk 0:03:00]}  Nf6 {[%clk 0:02:59]} 2. c4 {[%clk 0:03:01]}  g6 {[%clk 0:02:58]} 3. Nc3 {[%clk 0:03:01]}  Bg7 {[%clk 0:02:59]} 4. e4 {[%clk 0:03:02]}  O-O {[%clk 0:03:00]} 5. Be2 {[%clk 0:03:03]}  d6 {[%clk 0:03:00]} 6. Be3 {[%clk 0:03:03]}  Na6 {[%clk 0:03:00]} 7. Nf3 {[%clk 0:03:03]}  e5 {[%clk 0:03:01]} 8. d5 {[%clk 0:03:03]}  Nc5 {[%clk 0:03:00]} 9. Nd2 {[%clk 0:03:03]}  a5 {[%clk 0:03:00]} 10. b3 {[%clk 0:03:03]}  Ne8 {[%clk 0:03:01]} 11. f3 {[%clk 0:03:02]}  f5 {[%clk 0:03:02]} 12. O-O {[%clk 0:03:03]}  f4 {[%clk 0:02:59]} 13. Bf2 {[%clk 0:03:03]}  g5 {[%clk 0:03:00]} 14. a3 {[%clk 0:03:03]}  h5 {[%clk 0:02:58]} 15. b4 {[%clk 0:03:04]}  Na6 {[%clk 0:02:59]} 16. c5 {[%clk 0:03:02]}  Rf7 {[%clk 0:02:52]} 17. Nc4 {[%clk 0:03:02]}  Bf8 {[%clk 0:02:50]} 18. cxd6 {[%clk 0:03:01]}  cxd6 {[%clk 0:02:50]} 19. bxa5 {[%clk 0:02:58]}  Rg7 {[%clk 0:02:45]} 20. Nb6 {[%clk 0:02:57]}  Rb8 {[%clk 0:02:45]} 21. Kh1 {[%clk 0:02:57]}  g4 {[%clk 0:02:46]} 22. Rc1 {[%clk 0:02:57]}  g3 {[%clk 0:02:42]} 23. Bg1 {[%clk 0:02:57]}  Bh3 {[%clk 0:02:15]} 24. hxg3 {[%clk 0:02:57]}  fxg3 {[%clk 0:00:42]} 25. gxh3 {[%clk 0:02:51]}  g2+ {[%clk 0:00:43]} 26. Kh2 {[%clk 0:02:52]}  Qg5 {[%clk 0:00:36]} 27. Bf2 {[%clk 0:02:53]}  Be7 {[%clk 0:00:08]} 28. Re1 {[%clk 0:02:45]}  Qf4+ {[%clk 0:00:03]} 29. Kg1 {[%clk 0:02:45]}  Bh4 {[%clk 0:00:03]} 30. Bxa6 {[%clk 0:02:32]}  Bxf2+ {[%clk 0:00:02]} 31. Kxf2 {[%clk 0:02:33]}  g1=Q+ {[%clk 0:00:03]} 32. Rxg1 {[%clk 0:02:33]}  Qh2+ {[%clk 0:00:03]} 33. Ke3 {[%clk 0:02:33]}  Qf4+ {[%clk 0:00:04]} 34. Kd3 {[%clk 0:02:33]}  bxa6 {[%clk 0:00:04]} 35. Qe2 {[%clk 0:02:29]}  Nf6 {[%clk 0:00:03]} 36. Rxg7+ {[%clk 0:02:28]}  Kxg7 {[%clk 0:00:04]} 37. Qe3 {[%clk 0:02:28]}  Qh2 {[%clk 0:00:04]} 38. Qg1+ {[%clk 0:02:29]}  Qxg1 {[%clk 0:00:04]} 39. Rxg1+ {[%clk 0:02:30]}  Kf7 {[%clk 0:00:05]} 40. Na2 {[%clk 0:02:28]}  Rxb6 {[%clk 0:00:05]} 41. axb6 {[%clk 0:02:29]} 1-0


[Site "https://www.chess.com"]

[Event "Titled Tuesday Blitz March 14 Early 2023"]
[White "Lenderman, Aleksandr"]
[Black "EREBUNI91"]
[WhiteFideId "2021285"]
[WhiteElo "2607"]
[BlackElo "2762"]
[Result "0-1"]
[Round "07"]
[TimeControl "180+2"]
[Date "2023.03.14"]
[WhiteClock "0:01:54"]
[BlackClock "0:01:00"]

1. d4 {[%clk 0:03:00]}  Nf6 {[%clk 0:02:59]} 2. c4 {[%clk 0:03:00]}  e6 {[%clk 0:03:00]} 3. g3 {[%clk 0:03:00]}  d5 {[%clk 0:03:00]} 4. Bg2 {[%clk 0:03:00]}  Be7 {[%clk 0:03:00]} 5. Nc3 {[%clk 0:02:57]}  O-O {[%clk 0:03:01]} 6. Nf3 {[%clk 0:02:58]}  dxc4 {[%clk 0:02:57]} 7. Ne5 {[%clk 0:02:58]}  Nc6 {[%clk 0:02:55]} 8. Bxc6 {[%clk 0:02:57]}  bxc6 {[%clk 0:02:55]} 9. Nxc6 {[%clk 0:02:58]}  Qe8 {[%clk 0:02:56]} 10. Nxe7+ {[%clk 0:02:56]}  Qxe7 {[%clk 0:02:57]} 11. Qa4 {[%clk 0:02:56]}  e5 {[%clk 0:02:57]} 12. dxe5 {[%clk 0:02:28]}  Qxe5 {[%clk 0:02:58]} 13. O-O {[%clk 0:02:23]}  Be6 {[%clk 0:02:57]} 14. Bf4 {[%clk 0:02:18]}  Qc5 {[%clk 0:02:55]} 15. Rfd1 {[%clk 0:02:15]}  Rfd8 {[%clk 0:02:54]} 16. Be3 {[%clk 0:02:12]}  Qh5 {[%clk 0:02:54]} 17. f3 {[%clk 0:02:07]}  Nd5 {[%clk 0:02:45]} 18. Qa5 {[%clk 0:02:06]}  c6 {[%clk 0:02:05]} 19. Bf2 {[%clk 0:01:59]}  Rd7 {[%clk 0:01:01]} 20. e4 {[%clk 0:01:54]}  Qxf3 {[%clk 0:01:00]} 0-1


[Site "https://www.chess.com"]

[Event "Titled Tuesday Blitz March 14 Early 2023"]
[White "Cherniaiev, Tykhon"]
[Black "Daneshvar, Bardiya"]
[WhiteFideId "14182360"]
[BlackFideId "12576468"]
[WhiteElo "2450"]
[BlackElo "2468"]
[Result "0-1"]
[Round "07"]
[TimeControl "180+2"]
[Date "2023.03.14"]
[WhiteClock "0:00:02"]
[BlackClock "0:01:49"]

1. Nf3 {[%clk 0:03:00]}  b6 {[%clk 0:03:00]} 2. g3 {[%clk 0:02:59]}  Bb7 {[%clk 0:03:01]} 3. Bg2 {[%clk 0:02:59]}  g6 {[%clk 0:03:02]} 4. O-O {[%clk 0:03:00]}  Bg7 {[%clk 0:03:03]} 5. d4 {[%clk 0:02:52]}  Nf6 {[%clk 0:03:00]} 6. c4 {[%clk 0:02:52]}  O-O {[%clk 0:03:01]} 7. Nc3 {[%clk 0:02:52]}  Ne4 {[%clk 0:03:01]} 8. Qc2 {[%clk 0:02:51]}  Nxc3 {[%clk 0:03:01]} 9. bxc3 {[%clk 0:02:51]}  Nc6 {[%clk 0:02:58]} 10. Nd2 {[%clk 0:02:48]}  Qc8 {[%clk 0:02:53]} 11. Rb1 {[%clk 0:02:45]}  Na5 {[%clk 0:02:53]} 12. Bxb7 {[%clk 0:02:44]}  Qxb7 {[%clk 0:02:54]} 13. Ba3 {[%clk 0:02:40]}  d6 {[%clk 0:02:49]} 14. c5 {[%clk 0:02:36]}  Qa6 {[%clk 0:02:50]} 15. cxb6 {[%clk 0:02:27]}  axb6 {[%clk 0:02:48]} 16. Qe4 {[%clk 0:02:23]}  e6 {[%clk 0:02:39]} 17. Bb2 {[%clk 0:02:09]}  Nc4 {[%clk 0:02:35]} 18. Nxc4 {[%clk 0:02:08]}  Qxc4 {[%clk 0:02:36]} 19. a3 {[%clk 0:02:08]}  d5 {[%clk 0:02:34]} 20. Qf3 {[%clk 0:02:05]}  c5 {[%clk 0:02:30]} 21. e4 {[%clk 0:02:01]}  cxd4 {[%clk 0:02:28]} 22. cxd4 {[%clk 0:02:01]}  dxe4 {[%clk 0:02:26]} 23. Qxe4 {[%clk 0:02:00]}  Rfd8 {[%clk 0:02:27]} 24. Rfc1 {[%clk 0:01:35]}  Qd5 {[%clk 0:02:25]} 25. Qxd5 {[%clk 0:01:25]}  Rxd5 {[%clk 0:02:26]} 26. Bc3 {[%clk 0:01:22]}  b5 {[%clk 0:02:24]} 27. Rb3 {[%clk 0:01:15]}  Bxd4 {[%clk 0:02:18]} 28. Bxd4 {[%clk 0:01:15]}  Rxd4 {[%clk 0:02:19]} 29. Rxb5 {[%clk 0:01:15]}  Rxa3 {[%clk 0:02:19]} 30. Rbc5 {[%clk 0:01:03]}  Kg7 {[%clk 0:02:14]} 31. R5c3 {[%clk 0:01:01]}  Ra2 {[%clk 0:02:13]} 32. Rf3 {[%clk 0:00:57]}  g5 {[%clk 0:02:13]} 33. Rc7 {[%clk 0:00:54]}  g4 {[%clk 0:02:07]} 34. Rcxf7+ {[%clk 0:00:35]}  Kg6 {[%clk 0:02:07]} 35. R3f4 {[%clk 0:00:35]}  Rd1+ {[%clk 0:01:56]} 36. Kg2 {[%clk 0:00:34]}  Raa1 {[%clk 0:01:57]} 37. R4f6+ {[%clk 0:00:21]}  Kh5 {[%clk 0:01:50]} 38. Rxh7+ {[%clk 0:00:02]}  Kg5 {[%clk 0:01:49]} 0-1


[Site "https://www.chess.com"]

[Event "Titled Tuesday Blitz March 14 Early 2023"]
[White "Fernandez Guillen, Ernesto J."]
[Black "Steinberg, Nitzan"]
[WhiteFideId "3512428"]
[BlackFideId "2801795"]
[WhiteElo "2423"]
[BlackElo "2486"]
[Result "1-0"]
[Round "07"]
[TimeControl "180+2"]
[Date "2023.03.14"]
[WhiteClock "0:00:18"]
[BlackClock "0:00:07"]

1. e4 {[%clk 0:02:52]}  c5 {[%clk 0:03:00]} 2. Nf3 {[%clk 0:02:52]}  e6 {[%clk 0:03:00]} 3. d4 {[%clk 0:02:52]}  cxd4 {[%clk 0:03:01]} 4. Nxd4 {[%clk 0:02:53]}  Nc6 {[%clk 0:03:01]} 5. Nc3 {[%clk 0:02:53]}  Qc7 {[%clk 0:03:02]} 6. Be3 {[%clk 0:02:53]}  a6 {[%clk 0:03:02]} 7. Qd2 {[%clk 0:02:54]}  Nf6 {[%clk 0:03:03]} 8. O-O-O {[%clk 0:02:54]}  Bb4 {[%clk 0:03:00]} 9. f3 {[%clk 0:02:55]}  Ne5 {[%clk 0:03:01]} 10. Qe1 {[%clk 0:02:54]}  O-O {[%clk 0:02:53]} 11. f4 {[%clk 0:02:31]}  Nxe4 {[%clk 0:02:41]} 12. fxe5 {[%clk 0:02:31]}  Nxc3 {[%clk 0:02:41]} 13. bxc3 {[%clk 0:02:28]}  Bxc3 {[%clk 0:02:41]} 14. Qg3 {[%clk 0:01:51]}  Re8 {[%clk 0:01:33]} 15. Rd3 {[%clk 0:01:47]}  Bb4 {[%clk 0:01:24]} 16. Bh6 {[%clk 0:01:39]}  Bf8 {[%clk 0:01:24]} 17. Qg5 {[%clk 0:01:31]}  Qd8 {[%clk 0:01:15]} 18. Qxd8 {[%clk 0:01:28]}  Rxd8 {[%clk 0:01:15]} 19. Bg5 {[%clk 0:01:28]}  Re8 {[%clk 0:01:16]} 20. Be2 {[%clk 0:01:26]}  b5 {[%clk 0:01:13]} 21. Bf3 {[%clk 0:01:26]}  Ra7 {[%clk 0:01:14]} 22. Rhd1 {[%clk 0:01:26]}  Rc7 {[%clk 0:01:12]} 23. Kb1 {[%clk 0:01:26]}  b4 {[%clk 0:01:05]} 24. Nb3 {[%clk 0:01:24]}  a5 {[%clk 0:00:45]} 25. Nxa5 {[%clk 0:01:17]}  Rc5 {[%clk 0:00:45]} 26. Nb3 {[%clk 0:01:05]}  Rxe5 {[%clk 0:00:45]} 27. Bf4 {[%clk 0:01:06]}  Rb5 {[%clk 0:00:40]} 28. Bd6 {[%clk 0:01:05]}  Bxd6 {[%clk 0:00:37]} 29. Rxd6 {[%clk 0:01:06]}  Kf8 {[%clk 0:00:36]} 30. Be2 {[%clk 0:01:02]}  Rb8 {[%clk 0:00:33]} 31. Kb2 {[%clk 0:00:45]}  Ke7 {[%clk 0:00:32]} 32. c3 {[%clk 0:00:46]}  bxc3+ {[%clk 0:00:28]} 33. Kxc3 {[%clk 0:00:46]}  Rd8 {[%clk 0:00:29]} 34. Nc5 {[%clk 0:00:43]}  Ra8 {[%clk 0:00:29]} 35. a4 {[%clk 0:00:43]}  f5 {[%clk 0:00:28]} 36. Bb5 {[%clk 0:00:42]}  Ra7 {[%clk 0:00:27]} 37. Nxe6 {[%clk 0:00:40]}  Rf8 {[%clk 0:00:22]} 38. Nxg7 {[%clk 0:00:36]}  Rc7+ {[%clk 0:00:20]} 39. Kb3 {[%clk 0:00:35]}  f4 {[%clk 0:00:19]} 40. Nh5 {[%clk 0:00:20]}  Rf5 {[%clk 0:00:19]} 41. Rh6 {[%clk 0:00:19]}  Rf7 {[%clk 0:00:14]} 42. Bc4 {[%clk 0:00:19]}  d5 {[%clk 0:00:12]} 43. Bxd5 {[%clk 0:00:18]}  Rf5 {[%clk 0:00:07]} 44. Rxh7+ {[%clk 0:00:19]}  Kd8 {[%clk 0:00:07]} 45. Be4+ {[%clk 0:00:18]} 1-0


[Site "https://www.chess.com"]

[Event "Titled Tuesday Blitz March 14 Early 2023"]
[White "Ozen, Bahadir"]
[Black "Liyanage, Ranindu Dilshan"]
[WhiteFideId "6337058"]
[BlackFideId "9915834"]
[WhiteElo "2503"]
[BlackElo "2199"]
[Result "1/2-1/2"]
[Round "07"]
[TimeControl "180+2"]
[Date "2023.03.14"]
[WhiteClock "0:01:13"]
[BlackClock "0:01:06"]

1. d4 {[%clk 0:03:00]}  Nf6 {[%clk 0:02:59]} 2. Nf3 {[%clk 0:03:01]}  d5 {[%clk 0:02:59]} 3. c4 {[%clk 0:03:01]}  e6 {[%clk 0:03:00]} 4. Nc3 {[%clk 0:03:01]}  Bb4 {[%clk 0:03:00]} 5. Bg5 {[%clk 0:03:01]}  h6 {[%clk 0:02:59]} 6. Bxf6 {[%clk 0:03:01]}  Qxf6 {[%clk 0:02:59]} 7. e3 {[%clk 0:03:01]}  O-O {[%clk 0:02:59]} 8. Rc1 {[%clk 0:03:02]}  dxc4 {[%clk 0:02:54]} 9. Bxc4 {[%clk 0:03:03]}  c5 {[%clk 0:02:55]} 10. O-O {[%clk 0:03:02]}  cxd4 {[%clk 0:02:55]} 11. Ne4 {[%clk 0:03:01]}  Qf5 {[%clk 0:02:55]} 12. Ng3 {[%clk 0:02:57]}  Qa5 {[%clk 0:02:54]} 13. Nxd4 {[%clk 0:02:46]}  Bd7 {[%clk 0:02:50]} 14. a3 {[%clk 0:02:36]}  Be7 {[%clk 0:02:42]} 15. Qb3 {[%clk 0:02:14]}  Qb6 {[%clk 0:02:13]} 16. Qxb6 {[%clk 0:02:12]}  axb6 {[%clk 0:02:13]} 17. Rfd1 {[%clk 0:02:10]}  Nc6 {[%clk 0:02:04]} 18. Ndf5 {[%clk 0:02:03]}  Rfd8 {[%clk 0:01:57]} 19. Nxe7+ {[%clk 0:02:03]}  Nxe7 {[%clk 0:01:58]} 20. Ne4 {[%clk 0:01:41]}  Bc6 {[%clk 0:01:54]} 21. Nc3 {[%clk 0:01:41]}  Rac8 {[%clk 0:01:52]} 22. Be2 {[%clk 0:01:34]}  Rxd1+ {[%clk 0:01:37]} 23. Rxd1 {[%clk 0:01:33]}  Nd5 {[%clk 0:01:37]} 24. Rc1 {[%clk 0:01:22]}  Nxc3 {[%clk 0:01:12]} 25. Rxc3 {[%clk 0:01:22]}  Rd8 {[%clk 0:01:13]} 26. Rd3 {[%clk 0:01:18]}  Rc8 {[%clk 0:01:06]} 27. Rc3 {[%clk 0:01:13]}  Rd8 {[%clk 0:01:06]} 28. Rd3 {[%clk 0:01:12]}  Rc8 {[%clk 0:01:06]} 29. Rc3 {[%clk 0:01:13]} 1/2-1/2


[Site "https://www.chess.com"]

[Event "Titled Tuesday Blitz March 14 Early 2023"]
[White "Galchenko, Matvey"]
[Black "Shuvalova, Polina"]
[WhiteFideId "24175480"]
[BlackFideId "24171760"]
[WhiteElo "2404"]
[BlackElo "2297"]
[Result "1-0"]
[Round "07"]
[TimeControl "180+2"]
[Date "2023.03.14"]
[WhiteClock "0:01:34"]
[BlackClock "0:00:50"]

1. f4 {[%clk 0:02:55]}  d5 {[%clk 0:02:58]} 2. Nf3 {[%clk 0:02:55]}  g6 {[%clk 0:02:58]} 3. g3 {[%clk 0:02:55]}  Bg7 {[%clk 0:02:59]} 4. Bg2 {[%clk 0:02:56]}  c5 {[%clk 0:02:59]} 5. O-O {[%clk 0:02:56]}  Nc6 {[%clk 0:02:59]} 6. d3 {[%clk 0:02:57]}  Nf6 {[%clk 0:02:59]} 7. Nc3 {[%clk 0:02:56]}  O-O {[%clk 0:02:53]} 8. e4 {[%clk 0:02:56]}  dxe4 {[%clk 0:02:37]} 9. dxe4 {[%clk 0:02:56]}  e5 {[%clk 0:02:36]} 10. Qxd8 {[%clk 0:02:56]}  Rxd8 {[%clk 0:02:33]} 11. Nxe5 {[%clk 0:02:56]}  Nxe5 {[%clk 0:02:31]} 12. fxe5 {[%clk 0:02:57]}  Ng4 {[%clk 0:02:31]} 13. Bg5 {[%clk 0:02:58]}  Re8 {[%clk 0:02:27]} 14. Nd5 {[%clk 0:02:55]}  Bxe5 {[%clk 0:02:22]} 15. h3 {[%clk 0:02:55]}  Bd4+ {[%clk 0:02:22]} 16. Kh1 {[%clk 0:02:55]}  Nf2+ {[%clk 0:01:47]} 17. Kh2 {[%clk 0:02:07]}  Nxe4 {[%clk 0:01:42]} 18. Rae1 {[%clk 0:01:53]}  Bf5 {[%clk 0:01:31]} 19. Ne7+ {[%clk 0:01:42]}  Rxe7 {[%clk 0:01:04]} 20. Bxe7 {[%clk 0:01:43]}  Re8 {[%clk 0:01:04]} 21. Bxe4 {[%clk 0:01:39]}  Rxe7 {[%clk 0:00:58]} 22. Bxf5 {[%clk 0:01:39]}  Rxe1 {[%clk 0:00:58]} 23. Rxe1 {[%clk 0:01:40]}  gxf5 {[%clk 0:00:58]} 24. c3 {[%clk 0:01:39]}  Bf6 {[%clk 0:00:58]} 25. Re8+ {[%clk 0:01:33]}  Kg7 {[%clk 0:00:57]} 26. Rb8 {[%clk 0:01:34]}  b6 {[%clk 0:00:54]} 27. Rb7 {[%clk 0:01:34]}  Be5 {[%clk 0:00:50]} 28. Kg2 {[%clk 0:01:34]}  f4 {[%clk 0:00:50]} 29. g4 {[%clk 0:01:34]} 1-0


[Site "https://www.chess.com"]

[Event "Titled Tuesday Blitz March 14 Early 2023"]
[White "Molina, Roberto Junio Brito"]
[Black "Bews, Steven"]
[WhiteFideId "2109450"]
[BlackFideId "2400529"]
[WhiteElo "2376"]
[BlackElo "2605"]
[Result "0-1"]
[Round "07"]
[TimeControl "180+2"]
[Date "2023.03.14"]
[WhiteClock "0:00:45"]
[BlackClock "0:00:36"]

1. d4 {[%clk 0:03:00]}  Nf6 {[%clk 0:02:59]} 2. c4 {[%clk 0:02:58]}  e6 {[%clk 0:02:59]} 3. Nf3 {[%clk 0:02:57]}  Bb4+ {[%clk 0:02:59]} 4. Bd2 {[%clk 0:02:57]}  Qe7 {[%clk 0:02:59]} 5. g3 {[%clk 0:02:56]}  O-O {[%clk 0:02:53]} 6. Bg2 {[%clk 0:02:56]}  Nc6 {[%clk 0:02:51]} 7. O-O {[%clk 0:02:55]}  Bxd2 {[%clk 0:02:51]} 8. Qxd2 {[%clk 0:02:54]}  d6 {[%clk 0:02:51]} 9. Nc3 {[%clk 0:02:54]}  a5 {[%clk 0:02:51]} 10. e4 {[%clk 0:02:53]}  e5 {[%clk 0:02:50]} 11. d5 {[%clk 0:02:54]}  Nb8 {[%clk 0:02:50]} 12. Ne1 {[%clk 0:02:54]}  Na6 {[%clk 0:02:45]} 13. Nd3 {[%clk 0:02:54]}  Nd7 {[%clk 0:02:43]} 14. b3 {[%clk 0:02:49]}  Ndc5 {[%clk 0:02:37]} 15. Nxc5 {[%clk 0:02:49]}  Nxc5 {[%clk 0:02:38]} 16. Rae1 {[%clk 0:02:47]}  Bd7 {[%clk 0:02:34]} 17. f4 {[%clk 0:02:43]}  f6 {[%clk 0:02:34]} 18. f5 {[%clk 0:02:42]}  Qe8 {[%clk 0:02:31]} 19. g4 {[%clk 0:02:41]}  b5 {[%clk 0:02:31]} 20. cxb5 {[%clk 0:02:39]}  Bxb5 {[%clk 0:02:32]} 21. Rf3 {[%clk 0:02:39]}  Bd7 {[%clk 0:02:27]} 22. Bf1 {[%clk 0:02:38]}  Rb8 {[%clk 0:02:24]} 23. Rb1 {[%clk 0:02:37]}  Rb4 {[%clk 0:02:23]} 24. Bc4 {[%clk 0:02:34]}  a4 {[%clk 0:02:15]} 25. Re3 {[%clk 0:01:59]}  axb3 {[%clk 0:02:13]} 26. axb3 {[%clk 0:02:00]}  Qb8 {[%clk 0:02:08]} 27. Kg2 {[%clk 0:01:42]}  Nxb3 {[%clk 0:02:01]} 28. Bxb3 {[%clk 0:01:41]}  Rxb3 {[%clk 0:02:02]} 29. Rxb3 {[%clk 0:01:42]}  Qxb3 {[%clk 0:02:02]} 30. Ne2 {[%clk 0:01:41]}  Qc4 {[%clk 0:02:00]} 31. Ng3 {[%clk 0:01:40]}  Rb8 {[%clk 0:01:47]} 32. Rc3 {[%clk 0:01:40]}  Qd4 {[%clk 0:01:38]} 33. Qxd4 {[%clk 0:01:37]}  exd4 {[%clk 0:01:38]} 34. Rxc7 {[%clk 0:01:37]}  d3 {[%clk 0:01:34]} 35. Kf3 {[%clk 0:01:29]}  Ba4 {[%clk 0:00:57]} 36. Ke3 {[%clk 0:01:22]}  Bc2 {[%clk 0:00:50]} 37. Nh5 {[%clk 0:01:18]}  Rb1 {[%clk 0:00:50]} 38. Rxg7+ {[%clk 0:01:11]}  Kf8 {[%clk 0:00:50]} 39. Rc7 {[%clk 0:01:06]}  Re1+ {[%clk 0:00:48]} 40. Kd2 {[%clk 0:01:07]}  Re2+ {[%clk 0:00:41]} 41. Kc3 {[%clk 0:00:53]}  Bb1 {[%clk 0:00:40]} 42. Rb7 {[%clk 0:00:52]}  Rc2+ {[%clk 0:00:39]} 43. Kd4 {[%clk 0:00:47]}  d2 {[%clk 0:00:35]} 44. Rxb1 {[%clk 0:00:45]}  Rc1 {[%clk 0:00:36]} 0-1


[Site "https://www.chess.com"]

[Event "Titled Tuesday Blitz March 14 Early 2023"]
[White "Degenbaev, Aziz"]
[Black "Narayanan, Srinath"]
[WhiteFideId "13802640"]
[BlackFideId "5018420"]
[WhiteElo "2152"]
[BlackElo "2438"]
[Result "0-1"]
[Round "07"]
[TimeControl "180+2"]
[Date "2023.03.14"]
[WhiteClock "0:00:01"]
[BlackClock "0:00:07"]

1. e4 {[%clk 0:03:00]}  c6 {[%clk 0:02:56]} 2. d4 {[%clk 0:03:00]}  d5 {[%clk 0:02:57]} 3. e5 {[%clk 0:03:01]}  c5 {[%clk 0:02:57]} 4. dxc5 {[%clk 0:03:00]}  e6 {[%clk 0:02:57]} 5. a3 {[%clk 0:03:01]}  Bxc5 {[%clk 0:02:57]} 6. Qg4 {[%clk 0:03:01]}  Ne7 {[%clk 0:02:56]} 7. Nf3 {[%clk 0:03:01]}  Ng6 {[%clk 0:02:55]} 8. Bd3 {[%clk 0:03:00]}  Nc6 {[%clk 0:02:53]} 9. b4 {[%clk 0:02:49]}  Bb6 {[%clk 0:02:51]} 10. Bb2 {[%clk 0:02:44]}  Nce7 {[%clk 0:01:46]} 11. h4 {[%clk 0:02:11]}  h5 {[%clk 0:01:45]} 12. Qg5 {[%clk 0:02:11]}  Bd7 {[%clk 0:01:36]} 13. Nbd2 {[%clk 0:02:03]}  Qc7 {[%clk 0:01:34]} 14. O-O {[%clk 0:01:57]}  a5 {[%clk 0:01:28]} 15. c4 {[%clk 0:01:42]}  axb4 {[%clk 0:01:00]} 16. axb4 {[%clk 0:01:37]}  Rxa1 {[%clk 0:01:01]} 17. Rxa1 {[%clk 0:01:38]}  dxc4 {[%clk 0:00:56]} 18. Nxc4 {[%clk 0:01:36]}  O-O {[%clk 0:00:37]} 19. Qxh5 {[%clk 0:01:33]}  Nf5 {[%clk 0:00:37]} 20. Ng5 {[%clk 0:01:00]}  Nh6 {[%clk 0:00:36]} 21. Bxg6 {[%clk 0:00:56]}  Bxf2+ {[%clk 0:00:34]} 22. Kh1 {[%clk 0:00:53]}  Qxc4 {[%clk 0:00:25]} 23. Rc1 {[%clk 0:00:22]}  Qxb4 {[%clk 0:00:22]} 24. Bxf7+ {[%clk 0:00:19]}  Rxf7 {[%clk 0:00:21]} 25. Nxf7 {[%clk 0:00:20]}  Nxf7 {[%clk 0:00:21]} 26. Rf1 {[%clk 0:00:09]}  Qxb2 {[%clk 0:00:19]} 27. Qf3 {[%clk 0:00:09]}  Nxe5 {[%clk 0:00:13]} 28. Qxf2 {[%clk 0:00:06]}  Qxf2 {[%clk 0:00:13]} 29. Rxf2 {[%clk 0:00:07]}  b5 {[%clk 0:00:13]} 30. Rb2 {[%clk 0:00:05]}  Kf7 {[%clk 0:00:13]} 31. Kg1 {[%clk 0:00:06]}  Ke7 {[%clk 0:00:13]} 32. Rd2 {[%clk 0:00:06]}  Bc6 {[%clk 0:00:12]} 33. Kf2 {[%clk 0:00:05]}  Bd5 {[%clk 0:00:12]} 34. Rd4 {[%clk 0:00:05]}  b4 {[%clk 0:00:10]} 35. Ke2 {[%clk 0:00:01]}  b3 {[%clk 0:00:09]} 36. Rb4 {[%clk 0:00:02]}  Nc6 {[%clk 0:00:07]} 37. Rb7+ {[%clk 0:00:01]}  Kf6 {[%clk 0:00:07]} 38. g4 {[%clk 0:00:01]}  Nd4+ {[%clk 0:00:07]} 0-1


[Site "https://www.chess.com"]

[Event "Titled Tuesday Blitz March 14 Early 2023"]
[White "Garv Gaur"]
[Black "Pranav, V"]
[WhiteFideId "45030839"]
[BlackFideId "25060783"]
[WhiteElo "2068"]
[BlackElo "2500"]
[Result "0-1"]
[Round "07"]
[TimeControl "180+2"]
[Date "2023.03.14"]
[WhiteClock "0:01:06"]
[BlackClock "0:01:10"]

1. Nf3 {[%clk 0:03:00]}  d5 {[%clk 0:02:59]} 2. g3 {[%clk 0:03:01]}  Nf6 {[%clk 0:02:58]} 3. Bg2 {[%clk 0:03:01]}  c6 {[%clk 0:02:59]} 4. O-O {[%clk 0:03:01]}  Bg4 {[%clk 0:03:00]} 5. d4 {[%clk 0:02:58]}  Nbd7 {[%clk 0:03:00]} 6. c4 {[%clk 0:02:57]}  e6 {[%clk 0:03:01]} 7. cxd5 {[%clk 0:02:57]}  exd5 {[%clk 0:03:01]} 8. h3 {[%clk 0:02:57]}  Bxf3 {[%clk 0:03:00]} 9. Bxf3 {[%clk 0:02:51]}  Bd6 {[%clk 0:03:00]} 10. Nc3 {[%clk 0:02:51]}  O-O {[%clk 0:03:00]} 11. Re1 {[%clk 0:02:50]}  Re8 {[%clk 0:02:58]} 12. Kg2 {[%clk 0:02:44]}  h6 {[%clk 0:02:56]} 13. Qd3 {[%clk 0:02:40]}  Bf8 {[%clk 0:02:14]} 14. Bd2 {[%clk 0:02:32]}  b5 {[%clk 0:02:08]} 15. Rac1 {[%clk 0:02:31]}  a5 {[%clk 0:02:07]} 16. e4 {[%clk 0:02:15]}  b4 {[%clk 0:01:46]} 17. Na4 {[%clk 0:02:15]}  dxe4 {[%clk 0:01:44]} 18. Bxe4 {[%clk 0:02:16]}  Nxe4 {[%clk 0:01:38]} 19. Rxe4 {[%clk 0:02:17]}  Nf6 {[%clk 0:01:37]} 20. Rxe8 {[%clk 0:01:55]}  Qxe8 {[%clk 0:01:38]} 21. a3 {[%clk 0:01:50]}  Rd8 {[%clk 0:01:25]} 22. Be3 {[%clk 0:01:47]}  Qe6 {[%clk 0:01:19]} 23. axb4 {[%clk 0:01:11]}  axb4 {[%clk 0:01:16]} 24. Qc4 {[%clk 0:01:08]}  Nd5 {[%clk 0:01:11]} 25. Re1 {[%clk 0:01:06]}  Nxe3+ {[%clk 0:01:10]} 0-1


[Site "https://www.chess.com"]

[Event "Titled Tuesday Blitz March 14 Early 2023"]
[White "Krysa, Leandro"]
[Black "Bortnyk, Olexandr"]
[WhiteFideId "116807"]
[BlackFideId "14120828"]
[WhiteElo "2485"]
[BlackElo "2734"]
[Result "0-1"]
[Round "07"]
[TimeControl "180+2"]
[Date "2023.03.14"]
[WhiteClock "0:01:27"]
[BlackClock "0:01:38"]

1. Nf3 {[%clk 0:03:00]}  Nf6 {[%clk 0:03:00]} 2. g3 {[%clk 0:03:01]}  g6 {[%clk 0:03:00]} 3. Bg2 {[%clk 0:03:00]}  Bg7 {[%clk 0:03:01]} 4. O-O {[%clk 0:03:01]}  O-O {[%clk 0:03:02]} 5. c4 {[%clk 0:03:01]}  d6 {[%clk 0:03:02]} 6. Nc3 {[%clk 0:03:01]}  e5 {[%clk 0:02:58]} 7. d3 {[%clk 0:02:59]}  a5 {[%clk 0:02:56]} 8. Rb1 {[%clk 0:02:58]}  Bd7 {[%clk 0:02:55]} 9. a3 {[%clk 0:02:55]}  a4 {[%clk 0:02:55]} 10. e4 {[%clk 0:02:49]}  c5 {[%clk 0:02:44]} 11. h3 {[%clk 0:02:41]}  Qa5 {[%clk 0:02:39]} 12. Be3 {[%clk 0:02:37]}  Nc6 {[%clk 0:02:39]} 13. Qd2 {[%clk 0:02:31]}  Nd4 {[%clk 0:02:39]} 14. Bxd4 {[%clk 0:02:28]}  cxd4 {[%clk 0:02:37]} 15. Nd5 {[%clk 0:02:29]}  Nxd5 {[%clk 0:02:36]} 16. cxd5 {[%clk 0:02:25]}  Qxd2 {[%clk 0:02:35]} 17. Nxd2 {[%clk 0:02:25]}  Rfc8 {[%clk 0:02:33]} 18. Nc4 {[%clk 0:02:24]}  Ra6 {[%clk 0:02:30]} 19. Rfc1 {[%clk 0:02:23]}  Bh6 {[%clk 0:02:28]} 20. Rd1 {[%clk 0:02:06]}  b5 {[%clk 0:02:22]} 21. Nd2 {[%clk 0:02:06]}  Rc2 {[%clk 0:02:22]} 22. Nf3 {[%clk 0:02:06]}  b4 {[%clk 0:02:20]} 23. axb4 {[%clk 0:02:02]}  Rb6 {[%clk 0:02:21]} 24. Ne1 {[%clk 0:02:00]}  Rc7 {[%clk 0:02:17]} 25. b3 {[%clk 0:01:54]}  axb3 {[%clk 0:02:15]} 26. Rb2 {[%clk 0:01:47]}  Rxb4 {[%clk 0:02:10]} 27. Rdb1 {[%clk 0:01:46]}  Ba4 {[%clk 0:02:06]} 28. Bf3 {[%clk 0:01:43]}  Bc1 {[%clk 0:01:39]} 29. Re2 {[%clk 0:01:33]}  b2 {[%clk 0:01:39]} 30. Kg2 {[%clk 0:01:27]}  Bd1 {[%clk 0:01:38]} 0-1


[Site "https://www.chess.com"]